fUSD/lending_fUSD_20250530
["ID","MTS","AMOUNT","RATE_DAILY","PERIOD"]
[363096065,1748574659014,-215.0738,0.00022446,2]
[363096066,1748574659023,-151.0,0.00022447,7]
[363096067,1748574659033,-200.0,0.00022449,2]
[363096068,1748574659043,-150.0,0.00022454,2]
[363096069,1748574659052,-150.0,0.00022457,2]
[363096070,1748574659062,-150.0,0.00022458,2]
[363096071,1748574659071,-150.0,0.00022461,2]
[363096072,1748574659081,-150.0,0.00022462,2]
[363096073,1748574659091,-151.0,0.00022462,7]
[363096074,1748574659104,-500.0,0.00022462,2]
[363096075,1748574659115,-500.0,0.00022462,2]
[363096076,1748574659125,-591.0,0.00022462,2]
[363096077,1748574659135,-610.0,0.00022462,2]
[363096078,1748574659146,-500.0,0.00022462,2]
[363096079,1748574659155,-500.0,0.00022462,2]
[363096080,1748574659165,-500.0,0.00022462,2]
[363096081,1748574659174,-500.0,0.00022462,2]
[363096082,1748574659183,-821.0,0.00022462,2]
[363096083,1748574659193,-703.01736848,0.00022464,2]
[363096084,1748574659202,-421.25558051,0.00022464,2]
[363096085,1748574659212,-181.66,0.00022464,2]
[363096086,1748574659221,-403.24,0.00022464,2]
[363096087,1748574659231,-342.90115235,0.00022465,3]
[363096088,1748574659241,-12888.94491915,0.00022465,3]
[363096089,1748574659253,-5183.97760141,0.00022465,3]
[363096090,1748574659264,-139725.02010471,0.00022465,3]
[363096091,1748574659310,-40031.59855305,0.00022465,3]
[363096092,1748574659322,-2389.43781943,0.00022465,3]
[363096093,1748574660351,-526.01,0.00021917,2]
[363096094,1748574660361,-420.0,0.00021917,2]
[363096095,1748574660371,-49.65478316,0.00021917,2]
[363096096,1748574660383,-370.34521684,0.00021917,2]
[363096097,1748574660395,-366.55,0.00022191,2]
[363096098,1748574660405,-151.0,0.00022191,7]
[363096099,1748574660417,-579.21803318,0.00022465,3]
[363096100,1748574660433,-154.109727,0.000222,7]
[363096101,1748574660443,-8851.64362705,0.00022465,3]
[363096102,1748574660794,-420.0,0.00022191,2]
[363096103,1748574660804,-26584.78739805,0.00022465,3]
[363096104,1748574660816,-648.86960628,0.00022465,3]
[363096105,1748574660834,-2920.27,0.00022465,3]
[363096106,1748574660857,-5615.76768863,0.00022465,3]
[363096107,1748574660868,-2462.54982,0.00022465,3]
[363096108,1748574660934,-1253.0,0.00022465,3]
[363096109,1748574668747,180.8,0.00013699,2]
[363096112,1748574738706,600.0,0.00018972,2]
[363096123,1748574835710,-185.05459388,0.00019652,2]
[363096124,1748574839646,-163.82,0.00019652,2]
[363096125,1748574877029,248.03853641,0.00025,60]
[363096129,1748574910775,-190.03538033,0.00019652,2]
[363096133,1748574986280,-265.88,0.00019652,2]
[363096134,1748575011134,-196.7060109,0.00019652,2]
[363096211,1748575359060,-160.69650351,0.000195,2]
[363096212,1748575360589,-185.75786686,0.000195,2]
[363096215,1748575447005,500.0,0.00017807,2]
[363096216,1748575448589,500.0,0.00018903,2]
[363096217,1748575453977,1100.0,0.00018903,2]
[363096222,1748575536948,144.47327689,9e-05,2]
[363096223,1748575536971,2301.90724163,9e-05,2]
[363096224,1748575554943,542.56603526,6.94e-05,2]
[363096225,1748575554964,317.44621535,6.94e-05,2]
[363096239,1748575712747,2527.02706154,0.000149,2]
[363096240,1748575712771,2844.47327689,0.000149,2]
[363096241,1748575712792,1359.61396169,0.000149,2]
[363096243,1748575721290,203.0,0.00019112,2]
[363096247,1748575740364,204.46,0.00013699,2]
[363096260,1748575822594,163.68,0.00019409,2]
[363096273,1748575832345,-653.54562963,0.000195,2]
[363096274,1748575832355,-200.0,0.00019538,2]
[363096275,1748575832364,-74.89801059,0.00019652,2]
[363096276,1748575832378,-70.4760043,0.00019652,2]
[363096277,1748575832388,-200.0,0.00019672,2]
[363096278,1748575832397,-169.07370167,0.0001982,2]
[363096279,1748575832407,-169.07370165,0.0001986,2]
[363096280,1748575832416,-161.00686605,0.000199,2]
[363096281,1748575832426,-167.3116226,0.000199,2]
[363096282,1748575832435,-162.13057758,0.000199,2]
[363096283,1748575832444,-166.83600452,0.000199,2]
[363096284,1748575832453,-250.0,0.0001992,2]
[363096285,1748575832462,-57.63406163,0.00019973,2]
[363096286,1748575832473,-442.36593837,0.00019973,2]
[363096287,1748575832483,-249.29335807,0.00019973,2]
[363096288,1748575832498,-28.00571256,0.00019973,2]
[363096289,1748575832507,-500.0,0.00019973,2]
[363096290,1748575832517,-501.43431471,0.00019973,2]
[363096291,1748575832526,-500.0,0.00019973,2]
[363096292,1748575832535,-519.76774689,0.0001999,2]
[363096295,1748575838268,-169.07370165,0.00019899,2]
[363096296,1748575838277,-411.73225311,0.0001999,2]
[363096297,1748575838286,-931.5,0.0001999,2]
[363096298,1748575838295,-160.77,0.0001999,2]
[363096299,1748575838304,-1200.0,0.00019998,2]
[363096300,1748575838314,-1100.0,0.00019999,2]
[363096301,1748575838325,-218.20185895,0.00019999,2]
[363096302,1748575838338,-339.78963937,0.00019999,2]
[363096303,1748575838348,-136.64588926,0.00019999,2]
[363096304,1748575838379,-421.34560906,0.00019999,2]
[363096305,1748575838389,-557.99149832,0.00019999,2]
[363096306,1748575838398,-557.99149832,0.00019999,2]
[363096307,1748575838407,-557.99149832,0.00019999,2]
[363096308,1748575838417,-557.99149832,0.00019999,2]
[363096309,1748575838426,-557.99149832,0.00019999,2]
[363096310,1748575838435,-557.99149832,0.00019999,2]
[363096311,1748575838445,-557.99149832,0.00019999,2]
[363096312,1748575838454,-557.99149832,0.00019999,2]
[363096313,1748575838463,-557.99149832,0.00019999,2]
[363096314,1748575838472,-557.99149832,0.00019999,2]
[363096315,1748575838481,-557.99149832,0.00019999,2]
[363096317,1748575838490,-557.99149832,0.00019999,2]
[363096319,1748575838500,-557.99149832,0.00019999,2]
[363096321,1748575838509,-557.99149832,0.00019999,2]
[363096322,1748575838518,-557.99149832,0.00019999,2]
[363096323,1748575838527,-557.99149832,0.00019999,2]
[363096324,1748575838537,-557.99149832,0.00019999,2]
[363096326,1748575838546,-557.99149832,0.00019999,2]
[363096328,1748575838555,-557.99149832,0.00019999,2]
[363096330,1748575838564,-557.99149832,0.00019999,2]
[363096332,1748575838573,-557.99149832,0.00019999,2]
[363096334,1748575838582,-557.99149832,0.00019999,2]
[363096336,1748575838591,-557.99149832,0.00019999,2]
[363096338,1748575838599,-557.99149832,0.00019999,2]
[363096339,1748575838608,-557.99149832,0.00019999,2]
[363096341,1748575838617,-557.99149832,0.00019999,2]
[363096343,1748575838628,-557.99149832,0.00019999,2]
[363096345,1748575838637,-557.99149832,0.00019999,2]
[363096347,1748575838646,-557.99149832,0.00019999,2]
[363096349,1748575838657,-557.99149832,0.00019999,2]
[363096351,1748575838666,-557.99149832,0.00019999,2]
[363096352,1748575838675,-557.99149832,0.00019999,2]
[363096353,1748575838685,-557.99149832,0.00019999,2]
[363096354,1748575838694,-557.99149832,0.00019999,2]
[363096355,1748575838703,-557.99149832,0.00019999,2]
[363096358,1748575838713,-557.99149832,0.00019999,2]
[363096360,1748575838722,-557.99149832,0.00019999,2]
[363096362,1748575838730,-557.99149832,0.00019999,2]
[363096364,1748575838739,-557.99149832,0.00019999,2]
[363096366,1748575838749,-557.99149832,0.00019999,2]
[363096368,1748575838758,-557.99149832,0.00019999,2]
[363096370,1748575838768,-557.99149832,0.00019999,2]
[363096372,1748575838777,-557.99149832,0.00019999,2]
[363096374,1748575838786,-557.99149832,0.00019999,2]
[363096376,1748575838795,-557.99149832,0.00019999,2]
[363096378,1748575838804,-557.99149832,0.00019999,2]
[363096380,1748575838812,-557.99149832,0.00019999,2]
[363096382,1748575838821,-557.99149832,0.00019999,2]
[363096384,1748575838830,-557.99149832,0.00019999,2]
[363096386,1748575838840,-557.99149832,0.00019999,2]
[363096388,1748575838848,-557.99149832,0.00019999,2]
[363096390,1748575838858,-557.99149832,0.00019999,2]
[363096392,1748575838867,-557.99149832,0.00019999,2]
[363096394,1748575838879,-557.99149832,0.00019999,2]
[363096396,1748575838889,-557.99149832,0.00019999,2]
[363096398,1748575838898,-557.99149832,0.00019999,2]
[363096400,1748575838908,-557.99149832,0.00019999,2]
[363096402,1748575838918,-557.99149832,0.00019999,2]
[363096404,1748575838927,-557.99149832,0.00019999,2]
[363096406,1748575838936,-557.99149832,0.00019999,2]
[363096408,1748575838945,-891.38264512,0.00019999,2]
[363096410,1748575838954,-891.38264512,0.00019999,2]
[363096412,1748575838965,-891.38264512,0.00019999,2]
[363096414,1748575838974,-891.38264512,0.00019999,2]
[363096416,1748575838983,-891.38264512,0.00019999,2]
[363096418,1748575838992,-891.38264512,0.00019999,2]
[363096420,1748575839002,-891.38264512,0.00019999,2]
[363096422,1748575839011,-891.38264512,0.00019999,2]
[363096423,1748575839020,-891.38264512,0.00019999,2]
[363096426,1748575839030,-891.38264512,0.00019999,2]
[363096428,1748575839039,-891.38264512,0.00019999,2]
[363096430,1748575839049,-891.38264512,0.00019999,2]
[363096431,1748575839058,-891.38264512,0.00019999,2]
[363096434,1748575839068,-891.38264512,0.00019999,2]
[363096436,1748575839077,-891.38264512,0.00019999,2]
[363096437,1748575839086,-891.38264512,0.00019999,2]
[363096439,1748575839096,-891.38264512,0.00019999,2]
[363096441,1748575839105,-891.38264512,0.00019999,2]
[363096444,1748575839116,-891.38264512,0.00019999,2]
[363096446,1748575839127,-891.38264512,0.00019999,2]
[363096448,1748575839136,-891.38264512,0.00019999,2]
[363096450,1748575839145,-891.38264512,0.00019999,2]
[363096452,1748575839155,-891.38264512,0.00019999,2]
[363096454,1748575839164,-891.38264512,0.00019999,2]
[363096456,1748575839173,-891.38264512,0.00019999,2]
[363096458,1748575839182,-891.38264512,0.00019999,2]
[363096460,1748575839192,-891.38264512,0.00019999,2]
[363096462,1748575839200,-1000.0,0.0002,2]
[363096464,1748575839209,-613770.6280269,0.0002,2]
[363096465,1748575839218,-281587.12263004,0.0002,2]
[363096466,1748575839226,-500.67085984,0.0002,2]
[363096467,1748575839235,-150.0,0.00020056,7]
[363096468,1748575839243,-200.0,0.00020101,2]
[363096469,1748575839254,-1473.7,0.00020136,2]
[363096470,1748575839262,-165.77,0.0002015,2]
[363096471,1748575839270,-376.4,0.00020168,2]
[363096472,1748575839278,-162.13057754,0.00020174,2]
[363096473,1748575839287,-265.88,0.00020178,2]
[363096474,1748575839296,-204.46,0.00020187,2]
[363096475,1748575839304,-5451.87,0.00020248,2]
[363096476,1748575839312,-192.84,0.00020248,2]
[363096477,1748575839321,-1000.0,0.00020259,2]
[363096478,1748575839329,-547.99,0.00020268,2]
[363096479,1748575839338,-250.0,0.00020383,2]
[363096481,1748575839347,-162.13057754,0.00020448,2]
[363096483,1748575839355,-2080.34,0.00020491,2]
[363096485,1748575839365,-398.48089186,0.00020521,2]
[363096487,1748575839374,-1000.0,0.00020521,2]
[363096489,1748575839383,-1000.0,0.00020521,2]
[363096491,1748575839391,-167.31162256,0.00020612,2]
[363096493,1748575839400,-161.00686604,0.0002063,2]
[363096495,1748575839409,-162.13057754,0.00020722,2]
[363096497,1748575839417,-158.64,0.00020834,2]
[363096499,1748575839426,-190.55,0.00020834,2]
[363096501,1748575839435,-857.757505,0.00020847,2]
[363096503,1748575839443,-261.05,0.00020863,2]
[363096505,1748575839452,-158.64,0.00020869,2]
[363096507,1748575839461,-158.64,0.00020903,2]
[363096509,1748575839469,-158.64,0.00020938,2]
[363096511,1748575839478,-299.99,0.00020951,7]
[363096512,1748575839487,-150.99,0.00020951,2]
[363096514,1748575839497,-999.99,0.00020951,2]
[363096517,1748575839507,-9999.99,0.00020951,2]
[363096519,1748575839516,-8371.93,0.00020951,2]
[363096521,1748575839525,-1350.46,0.00020951,2]
[363096522,1748575839535,-160.09,0.00020986,2]
[363096525,1748575839545,-162.13057754,0.00020996,2]
[363096527,1748575839554,-166.8360045,0.00020996,2]
[363096529,1748575839563,-4033.0,0.00021,3]
[363096531,1748575839572,-1500.0,0.00021068,2]
[363096533,1748575839582,-1500.0,0.00021068,2]
[363096535,1748575839591,-207.4,0.00021077,2]
[363096537,1748575839600,-1115.157653,0.00021077,2]
[363096539,1748575839609,-151.0,0.00021077,2]
[363096541,1748575839619,-1100.0,0.00021095,2]
[363096543,1748575839629,-533.03,0.00021114,2]
[363096544,1748575839638,-156.58,0.00021121,2]
[363096547,1748575839648,-167.97,0.00021151,2]
[363096549,1748575839657,-162.13057754,0.00021269,2]
[363096551,1748575839666,-857.757505,0.00021287,2]
[363096552,1748575839675,-167.31162256,0.00021324,2]
[363096554,1748575839684,-161.00686604,0.00021361,2]
[363096556,1748575839693,-453.91,0.0002137,2]
[363096558,1748575839703,-200.0,0.0002145,2]
[363096560,1748575839712,-200.0,0.0002145,2]
[363096563,1748575839722,-200.0,0.0002145,2]
[363096565,1748575839731,-162.13057754,0.00021543,2]
[363096567,1748575839741,-857.757505,0.0002155,2]
[363096569,1748575839750,-2000.0,0.00021616,2]
[363096570,1748575839759,-2000.0,0.00021616,2]
[363096572,1748575839769,-250.0,0.00021617,2]
[363096574,1748575839778,-857.757505,0.00021813,2]
[363096576,1748575839786,-174.9952,0.00021816,2]
[363096578,1748575839795,-2777.48757319,0.00021816,2]
[363096580,1748575839806,-1599.3668,0.00021817,2]
[363096582,1748575839815,-35977.5457,0.00021817,2]
[363096585,1748575839824,-459.7222963,0.00021817,2]
[363096587,1748575839834,-162.13057754,0.00021817,2]
[363096589,1748575839844,-1680.0,0.0002188,2]
[363096591,1748575839855,-207.73433369,0.00021907,2]
[363096593,1748575839864,-2806.78191219,0.00021912,2]
[363096595,1748575839876,-260.17756329,0.00021916,2]
[363096597,1748575839887,-150.31217675,0.00021916,2]
[363096599,1748575839896,-417.75115095,0.00021916,2]
[363096601,1748575839905,-1146.87,0.00021916,2]
[363096603,1748575839917,-531.69832566,0.00021917,2]
[363096605,1748575839927,-420.0,0.00021917,2]
[363096607,1748575839936,-420.0,0.00021917,2]
[363096609,1748575839945,-420.0,0.00021917,2]
[363096611,1748575839954,-424.54535185,0.00021917,2]
[363096613,1748575839963,-421.08264108,0.00021917,2]
[363096615,1748575839973,-422.74368506,0.00021917,2]
[363096617,1748575839982,-422.08760895,0.00021917,2]
[363096619,1748575839991,-420.0,0.00021917,2]
[363096621,1748575840000,-420.62740403,0.00021917,2]
[363096624,1748575840010,-420.0,0.00021917,2]
[363096626,1748575840019,-926.22,0.00021917,2]
[363096628,1748575840029,-420.0,0.00021917,2]
[363096630,1748575840039,-420.0,0.00021917,2]
[363096632,1748575840048,-420.0,0.00021917,2]
[363096634,1748575840057,-420.0,0.00021917,2]
[363096636,1748575840067,-420.0,0.00021917,2]
[363096638,1748575840076,-420.0,0.00021917,2]
[363096640,1748575840085,-1460.354789,0.00021917,2]
[363096642,1748575840096,-157.179978,0.00021917,2]
[363096644,1748575840106,-535.78,0.00021917,2]
[363096646,1748575840115,-420.0,0.00021917,2]
[363096648,1748575840125,-1688.763101,0.00021917,2]
[363096650,1748575840135,-420.0,0.00021917,2]
[363096652,1748575840144,-1193.56,0.00021917,2]
[363096654,1748575840153,-652.39,0.00021917,2]
[363096656,1748575840163,-420.0,0.00021917,2]
[363096658,1748575840172,-420.0,0.00021917,2]
[363096660,1748575840182,-420.0,0.00021917,2]
[363096662,1748575840191,-420.0,0.00021917,2]
[363096664,1748575840201,-420.0,0.00021917,2]
[363096666,1748575840210,-507.35,0.00021917,2]
[363096668,1748575840219,-200.03597181,0.00021917,2]
[363096670,1748575840229,-420.0,0.00021917,2]
[363096672,1748575840239,-508.72,0.00021917,2]
[363096674,1748575840248,-420.0,0.00021917,2]
[363096676,1748575840257,-420.0,0.00021917,2]
[363096678,1748575840267,-420.0,0.00021917,2]
[363096680,1748575840276,-420.0,0.00021917,2]
[363096682,1748575840286,-452.11,0.00021917,2]
[363096684,1748575840295,-420.0,0.00021917,2]
[363096686,1748575840304,-420.0,0.00021917,2]
[363096688,1748575840314,-455.23,0.00021917,2]
[363096690,1748575840323,-420.0,0.00021917,2]
[363096692,1748575840332,-420.0,0.00021917,2]
[363096694,1748575840343,-420.0,0.00021917,2]
[363096696,1748575840353,-714.62,0.00021917,2]
[363096698,1748575840362,-420.0,0.00021917,2]
[363096700,1748575840371,-465.14,0.00021917,2]
[363096702,1748575840381,-420.0,0.00021917,2]
[363096704,1748575840391,-600.04,0.00021917,2]
[363096707,1748575840401,-300.0,0.00021917,2]
[363096708,1748575840410,-420.0,0.00021917,2]
[363096710,1748575840420,-862.51,0.00021917,2]
[363096712,1748575840429,-278.51,0.00021917,2]
[363096714,1748575840439,-462.35,0.00021917,2]
[363096717,1748575840450,-420.0,0.00021917,2]
[363096719,1748575840459,-420.0,0.00021917,2]
[363096721,1748575840468,-420.0,0.00021917,2]
[363096723,1748575840477,-420.0,0.00021917,2]
[363096725,1748575840487,-420.0,0.00021917,2]
[363096727,1748575840496,-534.63415168,0.00021917,2]
[363096729,1748575840506,-420.0,0.00021917,2]
[363096731,1748575840515,-420.0,0.00021917,2]
[363096733,1748575840525,-580.2,0.00021917,2]
[363096735,1748575840535,-420.0,0.00021917,2]
[363096737,1748575840545,-420.0,0.00021917,2]
[363096739,1748575840554,-420.0,0.00021917,2]
[363096741,1748575840563,-420.0,0.00021917,2]
[363096743,1748575840573,-420.0,0.00021917,2]
[363096745,1748575840583,-420.0,0.00021917,2]
[363096747,1748575840593,-420.0,0.00021917,2]
[363096749,1748575840603,-420.0,0.00021917,2]
[363096751,1748575840612,-420.0,0.00021917,2]
[363096753,1748575840621,-420.0,0.00021917,2]
[363096755,1748575840631,-420.0,0.00021917,2]
[363096757,1748575840641,-420.0,0.00021917,2]
[363096759,1748575840651,-420.0,0.00021917,2]
[363096761,1748575840661,-420.0,0.00021917,2]
[363096763,1748575840672,-420.0,0.00021917,2]
[363096765,1748575840682,-420.0,0.00021917,2]
[363096767,1748575840692,-420.0,0.00021917,2]
[363096769,1748575840701,-420.0,0.00021917,2]
[363096771,1748575840711,-420.0,0.00021917,2]
[363096773,1748575840720,-472.27,0.00021917,2]
[363096775,1748575840730,-287.4640539,0.00021917,2]
[363096777,1748575840739,-420.0,0.00021917,2]
[363096779,1748575840748,-420.0,0.00021917,2]
[363096781,1748575840758,-420.0,0.00021917,2]
[363096783,1748575840768,-420.0,0.00021917,2]
[363096785,1748575840778,-420.0,0.00021917,2]
[363096787,1748575840788,-420.0,0.00021917,2]
[363096789,1748575840797,-420.0,0.00021917,2]
[363096791,1748575840806,-420.0,0.00021917,2]
[363096793,1748575840817,-620.94,0.00021917,2]
[363096795,1748575840826,-420.0,0.00021917,2]
[363096797,1748575840836,-420.0,0.00021917,2]
[363096800,1748575840846,-420.0,0.00021917,2]
[363096801,1748575840855,-420.0,0.00021917,2]
[363096804,1748575840865,-420.0,0.00021917,2]
[363096806,1748575840876,-420.0,0.00021917,2]
[363096808,1748575840887,-508.79,0.00021917,2]
[363096810,1748575840895,-431.28248738,0.00021917,2]
[363096812,1748575840906,-420.0,0.00021917,2]
[363096814,1748575840915,-473.81,0.00021917,2]
[363096816,1748575840926,-420.0,0.00021917,2]
[363096818,1748575840935,-420.0,0.00021917,2]
[363096820,1748575840944,-420.0,0.00021917,2]
[363096822,1748575840954,-420.0,0.00021917,2]
[363096824,1748575840963,-647.65,0.00021917,2]
[363096826,1748575840973,-420.0,0.00021917,2]
[363096828,1748575840982,-420.0,0.00021917,2]
[363096830,1748575840992,-161.372346,0.00021917,2]
[363096832,1748575841002,-154.471227,0.00021917,2]
[363096834,1748575841011,-546.67,0.00021917,2]
[363096836,1748575841021,-420.0,0.00021917,2]
[363096838,1748575841030,-521.18,0.00021917,2]
[363096840,1748575841039,-420.0,0.00021917,2]
[363096842,1748575841049,-420.0,0.00021917,2]
[363096844,1748575841059,-420.0,0.00021917,2]
[363096846,1748575841069,-420.0,0.00021917,2]
[363096848,1748575841078,-420.0,0.00021917,2]
[363096850,1748575841087,-420.0,0.00021917,2]
[363096852,1748575841097,-420.0,0.00021917,2]
[363096854,1748575841107,-422.88,0.00021917,2]
[363096856,1748575841115,-699.8,0.00021917,2]
[363096858,1748575841126,-420.0,0.00021917,2]
[363096860,1748575841135,-420.0,0.00021917,2]
[363096862,1748575841145,-420.0,0.00021917,2]
[363096864,1748575841154,-420.0,0.00021917,2]
[363096866,1748575841164,-420.0,0.00021917,2]
[363096868,1748575841174,-420.0,0.00021917,2]
[363096870,1748575841183,-412.30835441,0.00021917,2]
[363096872,1748575841192,-420.0,0.00021917,2]
[363096874,1748575841201,-548.09559931,0.00021917,2]
[363096876,1748575841211,-420.0,0.00021917,2]
[363096878,1748575841220,-420.0,0.00021917,2]
[363096880,1748575841229,-432.4624321,0.00021917,2]
[363096882,1748575841239,-420.0,0.00021917,2]
[363096884,1748575841248,-420.0,0.00021917,2]
[363096886,1748575841258,-420.0,0.00021917,2]
[363096888,1748575841267,-420.0,0.00021917,2]
[363096890,1748575841277,-420.0,0.00021917,2]
[363096892,1748575841285,-420.0,0.00021917,2]
[363096894,1748575841295,-452.1,0.00021917,2]
[363096896,1748575841304,-420.0,0.00021917,2]
[363096898,1748575841314,-420.0,0.00021917,2]
[363096900,1748575841325,-420.0,0.00021917,2]
[363096902,1748575841334,-501.46438773,0.00021917,2]
[363096917,1748575841563,-893.53,0.00021917,2]
[363096919,1748575841573,-154.127103,0.00021917,2]
[363096921,1748575841583,-420.0,0.00021917,2]
[363096923,1748575841593,-420.0,0.00021917,2]
[363096925,1748575841602,-420.0,0.00021917,2]
[363096927,1748575841611,-475.00740577,0.00021917,2]
[363096929,1748575841622,-420.0,0.00021917,2]
[363096931,1748575841631,-420.0,0.00021917,2]
[363096933,1748575841641,-420.0,0.00021917,2]
[363096935,1748575841651,-933.12,0.00021917,2]
[363096937,1748575841660,-420.0,0.00021917,2]
[363096939,1748575841669,-420.0,0.00021917,2]
[363096941,1748575841679,-420.0,0.00021917,2]
[363096943,1748575841688,-420.0,0.00021917,2]
[363096945,1748575841697,-557.52,0.00021917,2]
[363096947,1748575841707,-420.0,0.00021917,2]
[363096949,1748575841716,-1258.55,0.00021917,2]
[363096951,1748575841726,-420.0,0.00021917,2]
[363096953,1748575841736,-420.0,0.00021917,2]
[363096955,1748575841745,-420.0,0.00021917,2]
[363096957,1748575841755,-2210.23,0.00021917,2]
[363096959,1748575841764,-420.0,0.00021917,2]
[363096961,1748575841773,-420.0,0.00021917,2]
[363096963,1748575841783,-420.0,0.00021917,2]
[363096965,1748575841792,-420.0,0.00021917,2]
[363096967,1748575841802,-555.23,0.00021917,2]
[363096969,1748575841811,-524.48,0.00021917,2]
[363096971,1748575841821,-420.93314251,0.00021917,2]
[363096973,1748575841830,-494.23179395,0.00021917,2]
[363096975,1748575841840,-553.24145152,0.00021917,2]
[363096977,1748575841849,-439.08,0.00021917,2]
[363096979,1748575841859,-420.0,0.00021917,2]
[363096982,1748575841869,-420.0,0.00021917,2]
[363096983,1748575841881,-767.78,0.00021917,2]
[363096986,1748575841891,-1126.72,0.00021917,2]
[363096988,1748575841900,-420.0,0.00021917,2]
[363096990,1748575841910,-1569.44,0.00021917,2]
[363096991,1748575841919,-503.49,0.00021917,2]
[363096993,1748575841930,-151.75333084,0.00021917,2]
[363096996,1748575841940,-420.0,0.00021917,2]
[363096998,1748575841949,-176.008502,0.00021917,2]
[363097000,1748575841960,-1077.65,0.00021917,2]
[363097002,1748575841969,-479.31,0.00021917,2]
[363097004,1748575841979,-420.0,0.00021917,2]
[363097006,1748575841988,-735.89,0.00021917,2]
[363097008,1748575841998,-734.87,0.00021917,2]
[363097010,1748575842007,-420.0,0.00021917,2]
[363097012,1748575842016,-420.0,0.00021917,2]
[363097014,1748575842026,-420.0,0.00021917,2]
[363097016,1748575842035,-420.0,0.00021917,2]
[363097018,1748575842045,-420.0,0.00021917,2]
[363097020,1748575842055,-536.5605612,0.00021917,2]
[363097022,1748575842065,-420.0,0.00021917,2]
[363097024,1748575842075,-1316.02,0.00021917,2]
[363097026,1748575842085,-406.74661506,0.00021917,2]
[363097028,1748575842095,-522.16,0.00021917,2]
[363097030,1748575842104,-420.0,0.00021917,2]
[363097032,1748575842114,-1115.69,0.00021917,2]
[363097034,1748575842124,-587.16,0.00021917,2]
[363097036,1748575842133,-470.27,0.00021917,2]
[363097038,1748575842143,-420.0,0.00021917,2]
[363097040,1748575842153,-420.0,0.00021917,2]
[363097043,1748575842163,-719.03,0.00021917,2]
[363097045,1748575842172,-420.0,0.00021917,2]
[363097047,1748575842183,-421.33,0.00021917,2]
[363097049,1748575842192,-420.0,0.00021917,2]
[363097051,1748575842202,-1122.81,0.00021917,2]
[363097053,1748575842212,-420.0,0.00021917,2]
[363097055,1748575842221,-429.41329733,0.00021917,2]
[363097057,1748575842231,-1263.96,0.00021917,2]
[363097059,1748575842241,-458.98461193,0.00021917,2]
[363097061,1748575842251,-478.98,0.00021917,2]
[363097063,1748575842260,-420.0,0.00021917,2]
[363097065,1748575842270,-2092.3,0.00021917,2]
[363097067,1748575842279,-420.0,0.00021917,2]
[363097069,1748575842289,-1579.38,0.00021917,2]
[363097071,1748575842298,-420.0,0.00021917,2]
[363097073,1748575842308,-570.31,0.00021917,2]
[363097075,1748575842318,-820.84,0.00021917,2]
[363097077,1748575842327,-449.39,0.00021917,2]
[363097079,1748575842336,-540.76,0.00021917,2]
[363097081,1748575842346,-431.34484005,0.00021917,2]
[363097083,1748575842356,-420.0,0.00021917,2]
[363097085,1748575842365,-420.0,0.00021917,2]
[363097087,1748575842376,-388.97871371,0.00021917,2]
[363097089,1748575842386,-420.0,0.00021917,2]
[363097091,1748575842396,-843.84,0.00021917,2]
[363097093,1748575842406,-524.96,0.00021917,2]
[363097095,1748575842415,-699.97,0.00021917,2]